[Event "Serbian League Women 2024"]
[Site "Bajina Basta"]
[Date "2024.09.30"]
[Round "4.21"]
[White "Gaponenko, Inna"]
[Black "Garifullina, Leya"]
[Result "1/2-1/2"]
[ECO "B22"]
[WhiteElo "2324"]
[BlackElo "2438"]
[Annotator "TA"]
[PlyCount "47"]
[EventDate "2024.09.26"]
[EventType "team-tourn"]
[EventCountry "SRB"]
[SourceTitle "playchess.com"]
[Source "ChessBase"]
[SourceQuality "1"]
[TimeControl "40/5400+30:1800+30"]

{[%evp 25,47,0,0,0,0,0,0,0,11,3,10,2,10,16,3,0,0,0,0,0,0,0,0,0]} 1. e4 {[%emt 0:00:36]} c5 {[%emt 0:00:08]} 2. c3 {[%emt 0:00:04]} d5 {[%emt 0:00:06]} 3. exd5 {[%emt 0:00:04]} Qxd5 {[%emt 0:00:07]} 4. d4 {[%emt 0:00:03]} Nc6 {[%emt 0:00:12]} 5. Nf3 {[%emt 0:00:08]} Nf6 {[%emt 0:00:06]} 6. Be2 {[%emt 0:07:50]} cxd4 {[%emt 0:00:20]} 7. cxd4 {[%emt 0:00:04]} e6 {[%emt 0:00:05]} 8. Nc3 {[%emt 0:00:11][%cal Bb1c3,Bc3b5,Bb5c7][%mdl 32]} Qd6 {[%emt 0:00:06]} 9. O-O {[%emt 0:00:06]} Be7 {[%emt 0:00:02]} 10. Nb5 {[%emt 0:00:05]} Qd8 {[%emt 0:00:05]} 11. Bf4 {[%emt 0:00:05]} Nd5 {[%emt 0:00:07]} 12. Bg3 {[%emt 0:00:04]} O-O {[%emt 0:00:15]} 13. Bc4 {[%emt 0:00:10]} a6 {[%emt 0:00:20] The position is equal.} 14. Bxd5 {[%emt 0:00:06]} exd5 {[%emt 0:00:04]} 15. Nc7 {[%emt 0:00:29]} Rb8 {[%emt 0:00:06] Threatens to win with ...Bd6.} 16. Ne5 {[%emt 0:01:43][%cal Oc7d5]} Bf6 {[%emt 0:00:11] [#] White must now prevent ...Bxe5.} (16... Bf5 $5 17. Rc1 Nb4 $11) 17. Rc1 $1 {[%emt 0:34:46][%cal Of1e1]} Bxe5 $1 {[%emt 0:02:47]} 18. Bxe5 {[%emt 0:41:38]} Bf5 {[%emt 1:34:23]} 19. Qf3 {[%emt 0:01:24][%csl LRd5,LRf5]} Nxe5 {[%emt 0:00:00]} 20. Qxf5 {[%emt 0:01:05]} Nc6 {[%emt 0:00:00]} 21. Nxd5 {[%emt 0:06:54]} Nxd4 {[%emt 0:00:00]} 22. Qe4 {[%emt 0:00:07]} Ne2+ {[%emt 0:00:00]} 23. Qxe2 {[%emt 0:00:07]} Qxd5 {[%emt 0:00:00]} 24. Qc4 {[%emt 0:00:26] A rather calm draw.   Weighted Error Value: White=0.00 (flawless) /Black=0.01 (flawless) .  OK:         	White=7     	Black=7      Best:        	White=1     	---        Strong:       	---       	Black=1} 1/2-1/2

[Event "Serbian League Women 2024"]
[Site "Bajina Basta"]
[Date "2024.09.30"]
[Round "4.22"]
[White "Rakhmangulova, Anastasiya"]
[Black "Doluhanova, Evgeniya"]
[Result "1/2-1/2"]
[ECO "C47"]
[WhiteElo "2283"]
[BlackElo "2304"]
[Annotator "RC"]
[PlyCount "30"]
[EventDate "2024.09.26"]
[EventType "team-tourn"]
[EventCountry "SRB"]
[SourceTitle "playchess.com"]
[Source "ChessBase"]
[SourceQuality "1"]
[TimeControl "40/5400+30:1800+30"]

1. e4 {[%emt 0:00:18]} e5 {[%emt 0:00:15]} 2. Nf3 {[%emt 0:00:23]} Nc6 {[%emt 0:00:04]} 3. Nc3 {[%emt 0:01:46]} Nf6 {[%emt 0:00:16]} 4. d4 {[%emt 0:01:19]} exd4 {[%emt 0:00:26]} 5. Nxd4 {[%emt 0:00:05]} Bb4 {[%emt 0:00:05]} 6. Nxc6 {[%emt 0:00:40]} bxc6 {[%emt 0:00:35]} 7. Bd3 {[%emt 0:00:15]} d5 {[%emt 0:00:36]} 8. exd5 {[%emt 0:00:19]} O-O {[%emt 0:00:21]} 9. O-O {[%emt 0:01:03]} cxd5 {[%emt 0:00:06]} 10. Bg5 {[%emt 0:02:36]} c6 {[%emt 0:00:26]} 11. Qf3 {[%emt 0:01:36]} Be7 {[%emt 0:04:29]} 12. Rfe1 {[%emt 0:01:04]} h6 {[%emt 0:06:13]} 13. Bxh6 {[%emt 0:09:58]} gxh6 {[%emt 0:00:33]} 14. Qe3 {[%emt 0:00:09]} Re8 {[%emt 0:01:12]} 15. Qxh6 {[%emt 0:01:30]} Qd6 {[%emt 0:00:06]} 1/2-1/2

[Event "Serbian League Women 2024"]
[Site "Bajina Basta"]
[Date "2024.09.30"]
[Round "4.23"]
[White "Petronic, Sanja"]
[Black "Mandura, Tijana"]
[Result "0-1"]
[ECO "C70"]
[WhiteElo "2081"]
[BlackElo "2207"]
[Annotator "RC"]
[PlyCount "74"]
[EventDate "2024.09.26"]
[EventType "team-tourn"]
[EventCountry "SRB"]
[SourceTitle "playchess.com"]
[Source "ChessBase"]
[SourceQuality "1"]
[TimeControl "40/5400+30:1800+30"]

1. e4 {[%emt 0:01:45]} e5 {[%emt 0:00:13]} 2. Nf3 {[%emt 0:00:20]} Nc6 {[%emt 0:00:15]} 3. Bb5 {[%emt 0:01:25]} a6 {[%emt 0:00:17]} 4. Ba4 {[%emt 0:00:05]} Bc5 {[%emt 0:00:12]} 5. O-O {[%emt 0:01:37]} d6 {[%emt 0:00:22]} 6. d4 {[%emt 0:09:13]} exd4 {[%emt 0:00:54]} 7. Bxc6+ {[%emt 0:03:05]} bxc6 {[%emt 0:00:06]} 8. Nxd4 {[%emt 0:00:05]} Ne7 {[%emt 0:01:56]} 9. Bg5 {[%emt 0:03:06]} f6 {[%emt 0:04:46]} 10. Be3 {[%emt 0:00:09]} Bxd4 {[%emt 0:12:18]} 11. Bxd4 {[%emt 0:03:02]} O-O {[%emt 0:00:11]} 12. Nd2 {[%emt 0:11:36]} f5 {[%emt 0:05:57]} 13. f4 {[%emt 0:02:26]} c5 {[%emt 0:06:18]} 14. Bc3 {[%emt 0:01:55]} Bb7 {[%emt 0:00:23]} 15. e5 {[%emt 0:14:28]} Qe8 {[%emt 0:05:40]} 16. Nf3 {[%emt 0:03:35]} Nd5 {[%emt 0:04:26]} 17. Bd2 {[%emt 0:02:03]} Qg6 {[%emt 0:00:29]} 18. c4 {[%emt 0:04:41]} Nb6 {[%emt 0:01:38]} 19. b3 {[%emt 0:02:37]} dxe5 {[%emt 0:04:13]} 20. fxe5 {[%emt 0:00:06]} Rad8 {[%emt 0:00:37]} 21. Qe2 {[%emt 0:03:46]} Be4 {[%emt 0:00:48]} 22. Rf2 {[%emt 0:00:31]} Rfe8 {[%emt 0:01:20]} 23. Bf4 {[%emt 0:02:58]} h6 {[%emt 0:00:39]} 24. Rd1 {[%emt 0:03:56]} Qc6 {[%emt 0:05:01]} 25. h4 {[%emt 0:01:07]} Rxd1+ {[%emt 0:01:22]} 26. Qxd1 {[%emt 0:00:07]} Nd7 {[%emt 0:00:07]} 27. h5 {[%emt 0:03:35]} Bxf3 {[%emt 0:08:48]} 28. Qxf3 {[%emt 0:01:13]} Qe6 {[%emt 0:03:29]} 29. Re2 {[%emt 0:01:27]} Nf6 {[%emt 0:04:44]} 30. Rd2 {[%emt 0:04:12]} Ne4 {[%emt 0:01:26]} 31. Rd5 {[%emt 0:00:31]} Kh8 {[%emt 0:02:14]} 32. Be3 {[%emt 0:01:44]} c6 {[%emt 0:00:25]} 33. Rd1 {[%emt 0:01:34]} Qxe5 {[%emt 0:00:05]} 34. Bc1 {[%emt 0:01:56]} Nc3 {[%emt 0:01:45]} 35. Rf1 {[%emt 0:02:00]} Ne2+ {[%emt 0:00:24]} 36. Kf2 {[%emt 0:00:21]} Nxc1 {[%emt 0:00:25]} 37. Rxc1 {[%emt 0:00:06]} Qb2+ {[%emt 0:00:08]} 0-1

[Event "Serbian League Women 2024"]
[Site "Bajina Basta"]
[Date "2024.09.30"]
[Round "4.24"]
[White "Eric, Jovana"]
[Black "Urosevic, Marija"]
[Result "0-1"]
[ECO "B46"]
[WhiteElo "2162"]
[BlackElo "2060"]
[Annotator "RC"]
[PlyCount "154"]
[EventDate "2024.09.26"]
[EventType "team-tourn"]
[EventCountry "SRB"]
[SourceTitle "playchess.com"]
[Source "ChessBase"]
[SourceQuality "1"]
[TimeControl "40/5400+30:1800+30"]

1. e4 {[%emt 0:00:03]} c5 {[%emt 0:00:06]} 2. Nf3 {[%emt 0:00:06]} e6 {[%emt 0:00:04]} 3. d4 {[%emt 0:00:06]} cxd4 {[%emt 0:00:04]} 4. Nxd4 {[%emt 0:00:06]} Nc6 {[%emt 0:00:04]} 5. Nc3 {[%emt 0:00:07]} a6 {[%emt 0:00:15]} 6. Nxc6 {[%emt 0:01:05]} bxc6 {[%emt 0:03:07]} 7. Bd3 {[%emt 0:01:12]} Qc7 {[%emt 0:03:08]} 8. O-O {[%emt 0:02:12]} Nf6 {[%emt 0:04:03]} 9. f4 {[%emt 0:06:10]} Bb7 {[%emt 0:14:46]} 10. e5 {[%emt 0:07:09]} Nd5 {[%emt 0:00:16]} 11. Ne4 {[%emt 0:02:49]} c5 {[%emt 0:04:26]} 12. c3 {[%emt 0:10:16]} Rc8 {[%emt 0:12:20]} 13. Qh5 {[%emt 0:14:29]} g6 {[%emt 0:07:26]} 14. Qh3 {[%emt 0:01:32]} c4 {[%emt 0:00:14]} 15. Bc2 {[%emt 0:00:59]} h5 {[%emt 0:08:47]} 16. Kh1 {[%emt 0:03:53]} Be7 {[%emt 0:01:26]} 17. Bd2 {[%emt 0:03:32]} Qb8 {[%emt 0:08:29]} 18. Rae1 {[%emt 0:01:29]} Qa8 {[%emt 0:01:37]} 19. b3 {[%emt 0:07:58]} a5 {[%emt 0:03:51]} 20. bxc4 {[%emt 0:09:05]} Rxc4 {[%emt 0:01:08]} 21. Bd3 {[%emt 0:00:36]} Ra4 {[%emt 0:04:20]} 22. Bb1 {[%emt 0:06:45]} Nb6 {[%emt 0:02:59]} 23. Nf6+ {[%emt 0:02:33]} Bxf6 {[%emt 0:00:40]} 24. exf6 {[%emt 0:00:06]} Bd5 {[%emt 0:03:43]} 25. Rf2 {[%emt 0:04:07]} Nc4 {[%emt 0:01:43]} 26. Bc1 {[%emt 0:00:29]} Qb7 {[%emt 0:01:05]} 27. Bd3 {[%emt 0:02:57]} Qb6 {[%emt 0:01:39]} 28. Rfe2 {[%emt 0:01:20]} Qd6 {[%emt 0:02:40]} 29. Rd1 {[%emt 0:03:47]} Qc5 {[%emt 0:02:34]} 30. Qh4 {[%emt 0:05:37]} Nd6 {[%emt 0:04:53]} 31. Bb1 {[%emt 0:01:36]} Nf5 {[%emt 0:00:52]} 32. Qf2 {[%emt 0:00:48]} Qxf2 {[%emt 0:00:36]} 33. Rxf2 {[%emt 0:00:04]} O-O {[%emt 0:00:41]} 34. Rb2 {[%emt 0:00:47]} h4 {[%emt 0:00:21]} 35. Kg1 {[%emt 0:00:11]} Rc8 {[%emt 0:00:42]} 36. Bd2 {[%emt 0:00:17]} Nd6 {[%emt 0:00:05]} 37. Be1 {[%emt 0:01:40]} Nc4 {[%emt 0:00:29]} 38. Re2 {[%emt 0:00:30]} h3 {[%emt 0:00:42]} 39. Be4 {[%emt 0:00:49]} Bxe4 {[%emt 0:00:39]} 40. Rxe4 {[%emt 0:00:04]} hxg2 {[%emt 0:00:42]} 41. Rxd7 {[%emt 0:01:38]} Rxa2 {[%emt 0:04:09]} 42. Rd3 {[%emt 0:07:12]} a4 {[%emt 0:08:55]} 43. Rdd4 {[%emt 0:10:04]} Nb6 {[%emt 0:00:42]} 44. Rb4 {[%emt 0:00:49]} Nd5 {[%emt 0:02:56]} 45. Rxa4 {[%emt 0:00:34]} Rc2 {[%emt 0:03:38]} 46. Ra1 {[%emt 0:04:43]} Nxf6 {[%emt 0:00:57]} 47. Rd4 {[%emt 0:00:06]} Nd5 {[%emt 0:00:56]} 48. Rd2 {[%emt 0:03:58]} Rxd2 {[%emt 0:03:31]} 49. Bxd2 {[%emt 0:00:06]} Nxc3 {[%emt 0:00:08]} 50. Kxg2 {[%emt 0:01:20]} Nd5 {[%emt 0:00:29]} 51. Ra2 {[%emt 0:00:41]} Kg7 {[%emt 0:00:47]} 52. Kf3 {[%emt 0:00:35]} Rc4 {[%emt 0:01:31]} 53. Ra1 {[%emt 0:01:42]} Rc2 {[%emt 0:01:17]} 54. Rd1 {[%emt 0:00:46]} Kf6 {[%emt 0:00:39]} 55. Kg3 {[%emt 0:02:03]} Kf5 {[%emt 0:00:19]} 56. h3 {[%emt 0:00:19]} Nc3 {[%emt 0:03:09]} 57. Bxc3 {[%emt 0:00:20]} Rxc3+ {[%emt 0:00:04]} 58. Kg2 {[%emt 0:00:02]} Rc4 {[%emt 0:00:11]} 59. Kg3 {[%emt 0:00:51]} Rxf4 {[%emt 0:00:35]} 60. Rb1 {[%emt 0:00:14]} e5 {[%emt 0:00:15]} 61. Rc1 {[%emt 0:00:31]} f6 {[%emt 0:00:41]} 62. Ra1 {[%emt 0:00:22]} g5 {[%emt 0:00:55]} 63. Rb1 {[%emt 0:00:18]} e4 {[%emt 0:01:04]} 64. Rb5+ {[%emt 0:00:16]} Kg6 {[%emt 0:00:52]} 65. Rb2 {[%emt 0:00:44]} Rf3+ {[%emt 0:00:20]} 66. Kg2 {[%emt 0:00:04]} Kf5 {[%emt 0:00:48]} 67. Rb6 {[%emt 0:00:27]} Ke5 {[%emt 0:00:29]} 68. Ra6 {[%emt 0:00:29]} f5 {[%emt 0:00:13]} 69. Ra2 {[%emt 0:00:52]} Kf4 {[%emt 0:00:13]} 70. Rb2 {[%emt 0:00:09]} g4 {[%emt 0:01:24]} 71. hxg4 {[%emt 0:00:17]} Kxg4 {[%emt 0:00:10]} 72. Ra2 {[%emt 0:00:16]} Rb3 {[%emt 0:00:38]} 73. Kf2 {[%emt 0:00:38]} f4 {[%emt 0:00:27]} 74. Rc2 {[%emt 0:00:39]} e3+ {[%emt 0:00:31]} 75. Kf1 {[%emt 0:00:21]} f3 {[%emt 0:00:08]} 76. Rc4+ {[%emt 0:00:39]} Kg3 {[%emt 0:00:04]} 77. Rc1 {[%emt 0:00:04]} Rb2 {[%emt 0:00:22]} 0-1